Cogmind - Beta 16 @@@ ROGUE MODE // 2026.01.17 @ 20:13:30 Player: Mojosoup Result: Destroyed by G-50 Soldier with Heavy Laser Performance ------------- Evolutions (3) 1500 Regions Visited (10) 2000 Robots Destroyed (163) 815 Value Destroyed (7340) 7340 Prototype IDs (6) 120 Alien Tech Used (0) 0 Bonus (3238) 3238 TOTAL SCORE: 15013 Bonus ------- High Alert Combat Kills 1167 Follower Combat Kills 671 Entered Garrisons 400 Used RIF Installer 1000 Cogmind --------- Core Integrity 0/700 Matter 290/300 Energy 21/100 System Corruption 3% Temperature Cool (9) Movement Core (50) Location -7/Factory Parts ------- > --- POWER (1) -------- (None) > --- PROPULSION (5) --- Carbon-fiber Leg Myomer Leg > --- UTILITY (4) ------ Relay Coupler [Grunt] (17) > --- WEAPON (3) ------- (None) > --- INVENTORY (5) ---- Advanced Sensor Array Relay Coupler [Hunter] (18) Heavy Assault Cannon Improved Datajack Peak State ------------ > --- POWER ------------ Light Antimatter Reactor > --- PROPULSION ------- Aluminum Leg Carbon-fiber Leg Carbon-fiber Leg Myomer Leg Myomer Leg > --- UTILITY ---------- Huge Storage Unit Improved Phase Shifter Heavy Armor Plating > --- WEAPON ----------- Flak Gun KE Penetrator KE Penetrator > --- INVENTORY -------- Light Nuclear Core Light Nuclear Core Light Treads Advanced Heat Sink Advanced Cooling System Huge Storage Unit High-capacity Matter Pod High-capacity Matter Pod Structural Scanner Advanced Sensor Array Improved Terrain Scanner Relay Coupler [NC] Relay Coupler [Grunt] Relay Coupler [Grunt] Relay Coupler [Sentry] Relay Coupler [Sentry] Relay Coupler [Hunter] Disruptor Cannon Autogun Flak Gun Heavy Assault Cannon Precision Grenade Launcher Improved Datajack Power Maul [Rating: 66] Favorites ----------- Power Heavy Ion Engine Engine Heavy Ion Engine Power Core Light Nuclear Core Reactor Light Antimatter Reactor Propulsion Advanced Treads Treads Advanced Treads Leg Aluminum Leg Wheel Compact Wheel Utility Huge Storage Unit Device Structural Scanner Storage Huge Storage Unit Processor Advanced Targeting Computer Hackware Relay Coupler [Grunt] Protection Improved Light Armor Plating Weapon Improved Assault Rifle Energy Cannon Plasma Cannon Ballistic Gun Improved Assault Rifle Ballistic Cannon Improved Light Cannon Launcher Grenade Launcher Impact Weapon Heavy Mace Special Melee Weapon Improved Datajack Build | -11 -10 -10 -9 -9 -8 -8 -8 -7 -7 -7 ------- Run | Yrd Mat Min Mat Min Mat Gar Mat Fac Gar Fac Slots Evolved 6 | . . . 2 . 2 . . 2 . . Power . | . . . . . . . . . . . Propulsion 3 | . . . 1 . . . . 2 . . Utility 2 | . . . 1 . 1 . . . . . Weapon 1 | . . . . . 1 . . . . . Parts Attached 100 | 7 4 3 15 . 9 6 16 10 29 1 Power 12 | 1 . 1 1 . 1 . 4 1 3 . Engine 7 | 1 . . 1 . 1 . 3 1 . . Core 4 | . . 1 . . . . 1 . 2 . Reactor 1 | . . . . . . . . . 1 . Propulsion 31 | 2 1 1 3 . 2 1 8 2 11 . Treads 10 | 2 . 1 . . 2 1 . 2 2 . Leg 12 | . . . . . . . 3 . 9 . Wheel 9 | . 1 . 3 . . . 5 . . . Hover . | . . . . . . . . . . . Flight . | . . . . . . . . . . . Utility 26 | 2 3 1 2 . 4 2 3 2 6 1 Device 8 | 1 1 1 . . 1 . . 1 3 . Storage 3 | 1 2 . . . . . . . . . Processor 2 | . . . . . 1 . 1 . . . Hackware 1 | . . . . . . . . . . 1 Protection 12 | . . . 2 . 2 2 2 1 3 . Artifact . | . . . . . . . . . . . Weapon 31 | 2 . . 9 . 2 3 1 5 9 . Energy Gun . | . . . . . . . . . . . Energy Cannon 3 | . . . 1 . 1 . . 1 . . Ballistic Gun 20 | 2 . . 6 . . 2 1 2 7 . Ballistic Cannon 2 | . . . 1 . . . . . 1 . Launcher 3 | . . . 1 . 1 . . 1 . . Special Weapon . | . . . . . . . . . . . Impact Weapon 2 | . . . . . . 1 . 1 . . Slashing Weapon . | . . . . . . . . . . . Piercing Weapon . | . . . . . . . . . . . Special Melee Weapon 1 | . . . . . . . . . 1 . Unidentified Prototypes 5 | . . . 3 . . . . 2 . . Parts Lost 36 | . . . 2 . 4 1 9 . 15 5 Power 5 | . . . . . 1 . 2 . 1 1 Propulsion 13 | . . . 1 . 1 1 3 . 5 2 Utility 8 | . . . . . 2 . 1 . 4 1 Weapon 10 | . . . 1 . . . 3 . 5 1 Highest Loss Streak 10 | . . . 1 . 3 1 4 . 10 5 To Critical Strikes . | . . . . . . . . . . . Average Backups 20 | 3 13 17 18 22 22 23 23 22 21 23 Power . | . 1 1 1 1 . 1 . . . 1 Propulsion 1 | 1 1 1 2 4 3 1 . 2 1 1 Utility 12 | . 7 11 9 9 11 13 15 13 13 13 Weapon 6 | . 3 4 4 8 8 8 6 6 5 6 Tool/Special . | . . . . . . . . . . . Unused Backups 51 | . 4 1 9 . 3 8 5 1 3 17 Power 4 | . . . 2 . . . . . . 2 Propulsion 9 | . 3 . 2 . . 1 . . 1 2 Utility 27 | . 1 1 4 . 1 4 4 1 1 10 Weapon 11 | . . . 1 . 2 3 1 . 1 3 Tool/Special . | . . . . . . . . . . . Average Slot Usage (%) 94 | . 100 98 96 100 98 99 95 99 83 89 Engine 7 | . 14 7 10 11 8 9 7 7 3 . Treads 16 | . 27 14 5 . 13 26 17 14 14 . Leg 5 | . . . . . . . 1 . 11 37 Wheel 7 | . . 13 27 33 12 . 4 23 5 . Device 6 | . 14 13 11 11 11 2 6 4 2 6 Storage 9 | . 14 14 11 11 9 9 9 7 6 6 Processor 6 | . . . . . 2 9 9 15 10 . Protection 8 | . . . 7 11 12 15 10 2 6 6 Ballistic Gun 20 | . 28 28 13 22 26 23 26 22 12 22 Ballistic Cannon 1 | . . . 8 . . . . . 1 . Impact Weapon 1 | . . . . . . 3 . . 2 . Peak Build Rating 66 | 9 10 14 20 20 32 35 32 41 66 66 Average Rating 29 | 5 9 10 16 20 27 32 28 36 37 64 On Entrance 24 | . 9 9 14 20 20 32 30 24 40 66 Avg Prop Armor Cover (%) 9 | . 13 13 14 . . . 5 14 4 37 Naked Turns . | . . . . . . . . . . . Heaviest Build 123 | 12 87 91 99 98 104 111 115 103 123 123 Greatest Support 90 | 40 40 42 44 44 68 68 66 44 90 90 Greatest Overweight (x) 34 | . 5 5 8 2 3 1 34 2 30 1 Average Overweight (x) 1 | . 1 4 2 2 1 1 1 2 1 . Largest Inventory Capacity 25 | 8 25 25 25 25 25 25 25 25 25 25 Average Capacity 23 | 7 19 25 25 25 25 25 25 25 23 24 Most Carried 25 | 6 17 25 25 23 25 25 25 25 25 25 Average Carried 22 | 3 13 21 23 23 23 24 24 24 23 24 Final Capacity 25 | 8 25 25 25 25 25 25 25 25 25 5 Final Carried 25 | 6 17 24 23 23 25 25 24 25 25 5 Class Distribution -------------------- 27% | Mutant 14% | Tank 11% | Scavenger-Gunner 11% | Gunner 7% | Bothacker-Mutant 7% | Bothacker-Tank 5% | Commander-Mutant 3% | Scientist-Mutant 3% | Scavenger-Mutant 3% | Scientist-Gunner Dominant Class ---------------- Mutant | -10/Materials Mutant | -10/Mines Mutant | -9/Materials Mutant | -9/Mines Tank | -8/Materials Tank | -8/Garrison Gunner | -8/Materials Scavenger-Gunner | -7/Factory Bothacker-Mutant | -7/Garrison Bothacker-Tank | -7/Factory Resources | -11 -10 -10 -9 -9 -8 -8 -8 -7 -7 -7 ----------- Run | Yrd Mat Min Mat Min Mat Gar Mat Fac Gar Fac Matter Collected 5927 | 237 133 305 1108 14 395 668 965 194 1781 127 Remotely . | . . . . . . . . . . . Salvage Created 6502 | 97 159 208 1095 86 547 825 1506 222 1606 151 Parts 354 | 7 10 5 74 2 27 60 88 13 60 8 Haulers Intercepted 6 | . 1 . 3 . 1 . 1 . . . Recyclers Shooed 3 | . . . 1 . . . 1 . . 1 Parts Field Recycled . | . . . . . . . . . . . Retrieved Matter . | . . . . . . . . . . . Parts Self-Destructed . | . . . . . . . . . . . Prevented . | . . . . . . . . . . . Parts Restored . | . . . . . . . . . . . Kills | -11 -10 -10 -9 -9 -8 -8 -8 -7 -7 -7 ------- Run | Yrd Mat Min Mat Min Mat Gar Mat Fac Gar Fac Combat Hostiles Destroyed 132 | . 4 4 25 2 11 22 26 4 33 1 Guns 100 | . 4 4 6 2 9 17 26 4 27 1 Cannons 20 | . . . 15 . . . . . 5 . AOE 11 | . . . 4 . 2 5 . . . . Classes Destroyed 18 | 2 3 . 4 . 2 3 3 . 1 . Worker 3 | . . . . . 1 . 2 . . . Builder 2 | . . . . . 1 . 1 . . . Tunneler 4 | 2 . . . . . . 2 . . . Hauler 6 | . 1 . 3 . 1 . 1 . . . Recycler 6 | 1 . . . . 1 . 3 . . 1 Mechanic 3 | . . . 1 . . . 1 . . 1 Watcher 6 | . . . 3 . 1 . 1 . 1 . Swarmer 31 | . 2 . 4 . 4 8 7 . 6 . Grunt 54 | . 2 4 15 2 5 3 10 1 12 . Brawler 4 | . . . 1 . . . . . 2 1 Duelist 4 | . . . . . . 2 2 . . . Protector 2 | . . . . . . . 2 . . . Sentry 24 | . . . 5 . 2 6 3 1 7 . Demolisher 2 | . . . . . . . . . 2 . Specialist 1 | . . . . . . 1 . . . . Hunter 1 | . . . . . . . 1 . . . Programmer 8 | . . . . . . 2 . 2 4 . Heavy 1 | . . . . . . . 1 . . . Thug 1 | . . . . . . 1 . . . . Best Kill Streak 6 | 3 2 1 4 2 6 5 5 1 5 2 Combat Bots Only 5 | . 2 1 4 2 5 5 5 1 4 1 Max Kills in Single Turn 3 | 1 1 1 2 1 3 2 2 1 1 2 Gunslinging 1 | . . . . . . . 1 . . . Exploded 2 | . . . 2 . 2 2 . . . . Melee . | . . . . . . . . . . . Uniques/NPCs Destroyed . | . . . . . . . . . . . Combat | -11 -10 -10 -9 -9 -8 -8 -8 -7 -7 -7 -------- Run | Yrd Mat Min Mat Min Mat Gar Mat Fac Gar Fac Hostile Shots Fired 786 | . 23 19 54 21 43 88 105 35 328 70 Missed 212 | . 6 6 14 4 11 21 22 16 95 17 Hits 574 | . 17 13 40 17 32 67 83 19 233 53 Melee 16 | . . . . . . . 1 . . 15 Projectile 558 | . 17 13 40 17 32 67 82 19 233 38 AOE 11 | . . . . 1 . . . . 10 . Critical Strikes 16 | . . 1 . 1 1 2 6 . 3 2 Part Disruptions 1 | . . . . 1 . . . . . . Damage Taken 8080 | . 194 218 485 231 422 735 1496 162 2891 1246 Core 1139 | . 29 48 49 31 44 34 191 35 323 355 Absorbed by Shields 18 | . . . . . . 18 . . . . Ignored by Resistances 153 | . . . . . . 50 49 . 54 . Core Remaining (%) 75 | 100 . 69 . 80 . . 51 . . . Volleys Fired 424 | 10 27 14 72 3 31 49 93 16 99 10 Largest 3 | 2 2 2 2 2 3 3 3 3 3 3 Hottest 94 | 40 40 40 53 46 69 69 69 80 94 94 Shots Fired 1019 | 20 54 28 130 6 89 128 273 38 225 28 Gun 922 | 20 54 28 74 6 87 120 273 33 199 28 Cannon 89 | . . . 54 . 1 3 . 5 26 . Launcher 8 | . . . 2 . 1 5 . . . . Special . | . . . . . . . . . . . Kinetic 993 | 20 54 28 128 6 87 120 273 33 216 28 Thermal 18 | . . . . . 1 3 . 5 9 . Explosive 8 | . . . 2 . 1 5 . . . . Electromagnetic . | . . . . . . . . . . . Robot Hit Streak 35 | 6 13 7 17 6 18 27 35 13 18 9 Robot Miss Streak 7 | 7 5 2 3 1 2 2 2 1 5 3 Penetration Max 1 | . . . . . . . . . . 1 Secondary Targets 18 | . . . 1 . 1 4 5 . 6 1 Max Gunslinging Chain 1 | . . . 1 . 1 1 1 . 1 1 Shots Hit Robots 764 | 9 33 18 88 5 62 80 210 24 212 23 Core Hits 377 | 5 11 10 44 3 29 41 78 12 124 20 Critical Kills 3 | . . . . . . 1 1 . 1 . Critical Parts Destroyed 11 | . . . 1 . . . 1 2 6 1 Critical Strikes 20 | . . . 5 . . 1 2 2 9 1 Meltdown 1 | . . . . . . . . . 1 . Destroy 8 | . . . 1 . . 1 2 2 1 1 Blast 5 | . . . 4 . . . . . 1 . Smash 6 | . . . . . . . . . 6 . Melee Attacks 126 | . . . . . . 42 . 1 78 5 Impact 100 | . . . . . . 42 . 1 57 . Slashing . | . . . . . . . . . . . Piercing . | . . . . . . . . . . . Sneak Attacks 20 | . . . . . . . . . 19 1 Combat Hostiles . | . . . . . . . . . . . Follow-up Attacks . | . . . . . . . . . . . Damage Inflicted 14454 | 88 335 189 1473 92 1126 1644 2895 347 5542 723 Guns 9973 | 85 335 189 499 78 981 1248 2853 347 2646 712 Cannons 1810 | . . . 830 . . . . . 980 . Explosions 654 | . . . 126 . 132 396 . . . . Melee 1916 | . . . . . . . . . 1916 . Ramming 101 | 3 . . 18 14 13 . 42 . . 11 Kinetic 11570 | 85 335 189 1329 78 981 1248 2853 347 3413 712 Thermal 213 | . . . . . . . . . 213 . Explosive 654 | . . . 126 . 132 396 . . . . Electromagnetic . | . . . . . . . . . . . Impact 1916 | . . . . . . . . . 1916 . Slashing . | . . . . . . . . . . . Piercing . | . . . . . . . . . . . Highest Corruption 4 | . . . . 2 2 3 4 . . 3 Average Corruption 2 | . . . . 2 2 2 3 . . 3 Corruption Purged . | . . . . . . . . . . . Corruption Blocked . | . . . . . . . . . . . Effects 80 | . . . . . 9 30 41 . . . Message Errors 23 | . . . . . 1 11 11 . . . Matter Fused 20 | . . . . . 4 3 13 . . . Heat Flow Errors 10 | . . . . . 2 4 4 . . . Energy Discharges 7 | . . . . . 1 6 . . . . Parts Rejected 1 | . . . . . . . 1 . . . Data Loss (minor) 9 | . . . . . 1 5 3 . . . Data Loss (major) 3 | . . . . . . . 3 . . . Misfires 2 | . . . . . . . 2 . . . Alerts 2 | . . . . . . 1 1 . . . Weapon Failures 3 | . . . . . . . 3 . . . Overload Shots . | . . . . . . . . . . . Overflow Damage 352 | . . . . . . 17 . . 335 . Projectiles 34 | . . . . . . . . . 34 . Explosions 17 | . . . . . . 17 . . . . Melee 301 | . . . . . . . . . 301 . Knockbacks 13 | . . . 3 1 . . 1 . 8 . Impact 8 | . . . . 1 . . 1 . 6 . Kinetic 4 | . . . 3 . . . . . 1 . Secondary 1 | . . . . . . . . . 1 . Self-Inflicted Damage 44 | . . . 26 7 6 . 5 . . . Shots 1 | . . . 1 . . . . . . . Rammed 7 | 1 1 . 2 1 1 . 1 . . . Targets Rammed 12 | 1 1 . 2 1 1 . 3 . . 3 Kicked 3 | . . . . . . . . . . 3 Crushed 2 | . . . . . . . 2 . . . Highest Temperature 272 | . 9 27 49 56 120 241 272 150 201 242 Average Temperature 49 | . 7 9 15 27 25 56 67 37 43 98 Received Heat Transfer 2728 | . 60 129 204 124 207 180 468 . 1005 351 Effects 2 | . . . . . . . 2 . . . Energy Bleed 1 | . . . . . . . 1 . . . Interference 1 | . . . . . . . 1 . . . Siege Activations . | . . . . . . . . . . . Martial Activations . | . . . . . . . . . . . Shielding Activations . | . . . . . . . . . . . Robots Disrupted . | . . . . . . . . . . . Combat Hostiles . | . . . . . . . . . . . Robots Corrupted 4 | . . . . . . . . . 4 . Combat Hostiles . | . . . . . . . . . . . Parts Fried 1 | . . . . . . . . . 1 . Impact Corruptions 10 | . . . . . . . . . 10 . Robots Melted 1 | . . . . . . . . . 1 . Combat Hostiles 1 | . . . . . . . . . 1 . Parts Melted 4 | . . . . 1 . . 1 . 2 . Heat Transferred 400 | . . . . . . . . . 400 . Parts Sabotaged . | . . . . . . . . . . . Parts Stolen . | . . . . . . . . . . . Parts Stripped . | . . . . . . . . . . . Power Chain Reactions . | . . . . . . . . . . . Alert | -11 -10 -10 -9 -9 -8 -8 -8 -7 -7 -7 ------- Run | Yrd Mat Min Mat Min Mat Gar Mat Fac Gar Fac Maximum Alert Level 5 | . . . 1 . . 5 3 1 5 3 Low Security (%) 32 | 100 100 100 75 100 100 17 . . 1 . Level 1 11 | . . . 24 . . 16 . 100 6 . Level 2 20 | . . . . . . 7 81 . 24 4 Level 3 21 | . . . . . . 24 18 . 32 95 Level 4 11 | . . . . . . 33 . . 22 . Level 5 3 | . . . . . . . . . 13 . High Security . | . . . . . . . . . . . Max Security . | . . . . . . . . . . . Peak Influence 1892 | 10 50 60 294 156 173 1649 803 341 1892 1015 Initial 993 | . . . 8 111 60 45 803 331 189 993 Average 562 | . 4 18 121 141 97 779 608 286 973 870 Influence Increases 6138 | 15 117 140 693 55 320 1674 740 154 2073 157 Destroy 0b10 Robot/C 3000 | . 80 80 500 40 220 640 480 80 780 100 Destroy 0b10 Robot/NC 195 | 15 5 . 35 . 25 . 65 . 35 15 Destroy Leader 422 | . 12 30 132 . 44 20 114 30 30 10 Allied During Kill 219 | . . . . . . 135 . . 68 16 Successful Hack 149 | . 20 . 11 . . 7 34 42 35 . Disable Machine 30 | . . . . . 15 . . . 15 . Anti-Garrison Action 1550 | . . . . . . 700 . . 850 . Destroy Structure 318 | . . . 15 . 1 157 2 2 140 1 Partial Spotted 15 | . . . . . . . . . 15 . Lose Combat Pursuer 240 | . . 30 . 15 15 15 45 . 105 15 Influence Decreases 5464 | 15 117 118 429 185 406 95 1660 612 452 1375 Entered New Map 2535 | . . . 14 175 96 25 846 398 82 899 Time Decay 2039 | 15 117 118 395 10 270 . 574 214 . 326 Lost Part 360 | . . . 20 . 40 10 90 . 150 50 Lost Ally 380 | . . . . . . 60 . . 220 100 Purge Threat 150 | . . . . . . . 150 . . . Squads Dispatched 14 | . . . 4 . 1 . 6 . . 3 Investigation 3 | . . . 2 . . . 1 . . . Extermination . | . . . . . . . . . . . Reinforcement 7 | . . . 2 . 1 . 3 . . 1 Assault 4 | . . . . . . . 2 . . 2 Garrison . | . . . . . . . . . . . Intercept . | . . . . . . . . . . . Searches Triggered . | . . . . . . . . . . . Construction Impeded . | . . . . . . . . . . . Haulers Reinforced . | . . . . . . . . . . . Active Scanning Responses . | . . . . . . . . . . . Cargo Convoy Interrupts . | . . . . . . . . . . . Stealth | -11 -10 -10 -9 -9 -8 -8 -8 -7 -7 -7 --------- Run | Yrd Mat Min Mat Min Mat Gar Mat Fac Gar Fac Distress Signals 14 | . . . 3 1 2 . 4 1 3 . Communications Jammed . | . . . . . . . . . . . Distress Signals . | . . . . . . . . . . . Times Spotted 238 | . 9 6 37 23 14 36 45 5 47 16 Peak Tracking Total 23 | . 4 2 5 23 7 6 8 2 6 6 Tactical Retreats 15 | . . 2 . 1 1 1 3 . 6 1 Traps | -11 -10 -10 -9 -9 -8 -8 -8 -7 -7 -7 ------- Run | Yrd Mat Min Mat Min Mat Gar Mat Fac Gar Fac Traps Triggered 15 | . 1 1 . . 1 5 . . 7 . Indirectly . | . . . . . . . . . . . Trap Hack Attempts . | . . . . . . . . . . . Triggered . | . . . . . . . . . . . Disarmed . | . . . . . . . . . . . Reprogrammed . | . . . . . . . . . . . Reused . | . . . . . . . . . . . Traps Extracted . | . . . . . . . . . . . Installed . | . . . . . . . . . . . Triggered . | . . . . . . . . . . . Most Traps Carried 5 | . . 5 5 . . . . . . . Machines | -11 -10 -10 -9 -9 -8 -8 -8 -7 -7 -7 ---------- Run | Yrd Mat Min Mat Min Mat Gar Mat Fac Gar Fac Machines Disabled 13 | . . . . . 1 8 . . 4 . Max in Single Turn 2 | . . . . . 1 2 . . 1 . Garrison Access 1 | . . . . . . . . . . 1 Garrison Relay 9 | . . . . . . 6 . . 3 . Phase Generator 2 | . . . . . . 1 . . 1 . Machines Repaired . | . . . . . . . . . . . Machines Dismantled . | . . . . . . . . . . . Machines Sabotaged . | . . . . . . . . . . . Overloaded Fab Kills . | . . . . . . . . . . . Hacking | -11 -10 -10 -9 -9 -8 -8 -8 -7 -7 -7 --------- Run | Yrd Mat Min Mat Min Mat Gar Mat Fac Gar Fac Machines Accessed 28 | . 4 1 6 . 2 3 6 3 3 . Terminals 22 | . 4 . 5 . 1 3 6 . 3 . Fabricators . | . . . . . . . . . . . Repair Stations . | . . . . . . . . . . . Recycling Units 1 | . . . . . . . . 1 . . Scanalyzers 2 | . . . 1 . . . . 1 . . Garrison Access 2 | . . . . . 1 . . 1 . . Total Hacks 73 | . 8 1 20 . 2 8 22 8 4 . Successful 38 | . 5 1 11 . 1 2 8 7 3 . Failed 35 | . 3 . 9 . 1 6 14 1 1 . Catastrophic 9 | . . . 3 . 1 3 2 . . . Database Lockouts . | . . . . . . . . . . . Manual 22 | . 4 . 6 . . . 9 3 . . Terminals 59 | . 8 . 16 . 1 8 22 . 4 . Fabricators . | . . . . . . . . . . . Repair Stations . | . . . . . . . . . . . Recycling Units 3 | . . . . . . . . 3 . . Scanalyzers 8 | . . . 4 . . . . 4 . . Garrison Access 2 | . . . . . 1 . . 1 . . Terminal Hacks 26 | . 5 1 7 . . 2 8 . 3 . Record 1 | . . . 1 . . . . . . . Robot Analysis 5 | . 2 . 1 . . . 2 . . . Prototype ID Bank 1 | . . . . . . . 1 . . . Open Door 3 | . . 1 . . . 1 . . 1 . Level Access Points 1 | . . . . . . . 1 . . . Branch Access Points 2 | . . . 1 . . . 1 . . . Emergency Access Points 3 | . . . . . . 1 1 . 1 . Terminal Index 2 | . 1 . 1 . . . . . . . Recycling Unit Index 1 | . . . 1 . . . . . . . Unreport Threat 1 | . . . . . . . 1 . . . Locate Traps 2 | . 1 . 1 . . . . . . . Maintenance Status 1 | . . . . . . . 1 . . . Transport Status 1 | . 1 . . . . . . . . . Zone Layout 1 | . . . 1 . . . . . . . Patrol Navigation 1 | . . . . . . . . . 1 . Fabricator Hacks . | . . . . . . . . . . . Repair Station Hacks . | . . . . . . . . . . . Recycling Unit Hacks . | . . . . . . . . . . . Scanalyzer 8 | . . . 4 . . . . 4 . . Retrieve Study 8 | . . . 4 . . . . 4 . . Garrison Access Hacks 2 | . . . . . 1 . . 1 . . Unlock Access 2 | . . . . . 1 . . 1 . . Unauthorized Hacks 2 | . . . . . . . . 2 . . Terminals . | . . . . . . . . . . . Fabricators . | . . . . . . . . . . . Repair Stations . | . . . . . . . . . . . Recycling Units 2 | . . . . . . . . 2 . . Reject 1 | . . . . . . . . 1 . . Mask 1 | . . . . . . . . 1 . . Scanalyzers . | . . . . . . . . . . . Garrison Access . | . . . . . . . . . . . Data Cores Recovered . | . . . . . . . . . . . Used . | . . . . . . . . . . . Hacking Detections 23 | . 3 . 6 . 1 3 5 3 2 . Full Trace Events 5 | . . . 2 . . 1 2 . . . Feedback Events 1 | . . . . . . . 1 . . . Corruption 1 | . . . . . . . 1 . . . Feedback Blocked . | . . . . . . . . . . . Robot Schematics Acquired . | . . . . . . . . . . . Robots Built . | . . . . . . . . . . . Authchips . | . . . . . . . . . . . Time . | . . . . . . . . . . . Total Robot Build Rating . | . . . . . . . . . . . Part Schematics Acquired . | . . . . . . . . . . . Parts Built . | . . . . . . . . . . . Authchips . | . . . . . . . . . . . Time . | . . . . . . . . . . . Total Part Build Rating . | . . . . . . . . . . . Part Studies Acquired 8 | . . . 4 . . . . 4 . . Parts Repaired . | . . . . . . . . . . . Time . | . . . . . . . . . . . Parts Recycled . | . . . . . . . . . . . Recycled Matter . | . . . . . . . . . . . Retrieved Matter . | . . . . . . . . . . . Retrieved Components . | . . . . . . . . . . . Parts Scanalyzed . | . . . . . . . . . . . Part Schematics Acquired . | . . . . . . . . . . . Parts Damaged . | . . . . . . . . . . . Bothacking | -11 -10 -10 -9 -9 -8 -8 -8 -7 -7 -7 ------------ Run | Yrd Mat Min Mat Min Mat Gar Mat Fac Gar Fac Used RIF Installer 2 | . . . . . . 1 . . 1 . Command Fork 1 | . . . . . . . . . 1 . Robots Hacked 2 | . . . . . . . . . . 2 Non-combat . | . . . . . . . . . . . Combat 2 | . . . . . . . . . . 2 Robot Hacks Applied 2 | . . . . . . . . . . 2 overwrite_iff 2 | . . . . . . . . . . 2 Relay Couplers Released 40 | . . . . . . 25 . . 12 3 Machine Destruction 40 | . . . . . . 25 . . 12 3 Attached 1 | . . . . . . . . . . 1 Fabnet Peak Effective % . | . . . . . . . . . . . Robots Rewired 17 | . . . . . . 4 . . 13 . Allies Hacked . | . . . . . . . . . . . Hacks Repelled . | . . . . . . . . . . . Allies | -11 -10 -10 -9 -9 -8 -8 -8 -7 -7 -7 -------- Run | Yrd Mat Min Mat Min Mat Gar Mat Fac Gar Fac Total Allies 22 | . . . . . . 4 . . 15 3 Largest Group 6 | . . . . . . 4 . . 6 4 Highest-Rated Group 138 | . . . . . . 106 . . 138 72 Highest-Rated Ally 39 | . . . . . . 31 . . 39 29 Total Orders . | . . . . . . . . . . . Ally Attacks 155 | . . . . . . 45 . . 82 28 Total Damage 2696 | . . . . . . 894 . . 1368 434 Kills 22 | . . . . . . 10 . . 7 5 Allies Corrupted 4 | . . . . . . . . . 4 . Allies Melted . | . . . . . . . . . . . Intel | -11 -10 -10 -9 -9 -8 -8 -8 -7 -7 -7 ------- Run | Yrd Mat Min Mat Min Mat Gar Mat Fac Gar Fac Active Infowar (turns) 5630 | 31 1115 377 1295 34 598 554 1343 283 . . Terrain 1094 | 31 853 . . . . . . 210 . . Structural 4536 | . 262 377 1295 34 598 554 1343 73 . . Seismic 192 | . . . . . 192 . . . . . Robot Analysis Total 5 | . 2 . 1 . . . 2 . . . Derelict Logs Recovered 1 | . . 1 . . . . . . . . Drone Launches . | . . . . . . . . . . . Drone Recoveries . | . . . . . . . . . . . Exploration | -11 -10 -10 -9 -9 -8 -8 -8 -7 -7 -7 ------------- Run | Yrd Mat Min Mat Min Mat Gar Mat Fac Gar Fac Turns Passed 11411 | 132 1115 405 1295 34 598 2103 1752 458 2785 734 Spaces Moved 4668 | 56 444 197 767 21 241 730 572 319 966 355 Core 48 | 3 . . . . . . 1 . 35 9 Treads 2204 | 53 417 1 . . 124 730 409 . 470 . Legs 695 | . . . . . . . 29 . 320 346 Wheels 1721 | . 27 196 767 21 117 . 133 319 141 . Hover . | . . . . . . . . . . . Flight . | . . . . . . . . . . . Fastest Speed 50 | 50 160 175 116 116 116 235 113 116 50 50 Average Speed 193 | 154 228 175 128 116 177 235 234 116 214 186 Slowest Speed 1750 | 160 320 312 210 116 235 240 1750 116 1550 190 Overloaded Moves . | . . . . . . . . . . . Propulsion Burnouts . | . . . . . . . . . . . Robots Hopped . | . . . . . . . . . . . Potential Cave-ins . | . . . . . . . . . . . Cave-ins Triggered . | . . . . . . . . . . . Exploration Rate (%) 41 | 4 67 50 61 9 28 99 44 9 73 11 Regions Visited 10 Branch Regions 2 Pre-discovered Areas . | . . . . . . . . . . . Known Exits Taken 4 | . . . 1 . 1 . 1 1 . . Unknown Exits Taken 4 | 1 1 1 . 1 . . . . . . Scrap Searched 1 | . . 1 . . . . . . . . Spaces Dug 20 | . . . 1 . . 15 . 1 3 . Terrain Destroyed 125 | . . . 18 . 1 99 . 1 5 1 Melee 19 | . . . . . . 15 . 1 3 . Projectile 6 | . . . 3 . . . . . 2 1 AOE 100 | . . . 15 . 1 84 . . . . Terrain Rammed . | . . . . . . . . . . . Walls Destroyed . | . . . . . . . . . . . Machines Disabled . | . . . . . . . . . . . Actions | -11 -10 -10 -9 -9 -8 -8 -8 -7 -7 -7 --------- Run | Yrd Mat Min Mat Min Mat Gar Mat Fac Gar Fac Total 6052 | 80 496 231 968 24 344 942 783 386 1391 407 Wait 360 | . . 4 73 . 44 34 78 22 85 20 Move 4658 | 55 443 196 766 20 240 729 571 318 965 355 Hop . | . . . . . . . . . . . Pick Up 118 | 7 15 7 15 . 10 13 7 9 32 3 Fast Attach 37 | 6 . 2 3 . 2 . 6 3 15 . Attach 28 | 1 . 1 3 . 5 1 4 2 10 1 Detach 9 | . . 1 1 . 1 . 1 . 4 1 Swap 97 | . 4 2 13 . 6 22 9 6 32 3 Drop 96 | . 6 4 20 . 4 14 11 9 22 6 Fire 424 | 10 27 14 72 3 31 49 93 16 99 10 Melee 126 | . . . . . . 42 . 1 78 5 Ram 5 | . . . 2 1 1 . 1 . . . Kick 3 | . . . . . . . . . . 3 Crush 4 | 1 1 . . . . . 2 . . . Escape Stasis 14 | . . . . . . 5 . . 9 . Rewire 73 | . . . . . . 33 . . 40 . Trap . | . . . . . . . . . . . Miscellaneous . | . . . . . . . . . . . Route ------- -11/Scrapyard -10/Materials (discovered 4 exits: *Mat / *Min x2 / [*Sub]) -10/Mines -9/Materials (discovered 4 exits: *Mat x2 / *Min x2) -9/Mines -8/Materials -8/Garrison (discovered 3 exits: *Mat x3) -8/Materials (discovered 3 exits: *Fac x3) -7/Factory -7/Garrison (discovered 2 exits: *Fac x2) -7/Factory (discovered 1 exit: [*Low]) History --------- Turn | Location | Event 35 | -11/Scrapyard | Discovered new exit (range 15) 133 | -11/Scrapyard | Entered Materials 283 | -10/Materials | Discovered new exit (range 13) 308 | -10/Materials | Build established: Mutant 616 | -10/Materials | Discovered new exit (range 15) 682 | -10/Materials | Discovered new exit (range 5) 1188 | -10/Materials | Discovered new exit (range 9) 1248 | -10/Materials | Entered Mines 1268 | -10/Mines | Met a Derelict bent on vengeance 1338 | -10/Mines | Learned Materials stockpile data 1354 | -10/Mines | Found a hidden stash of uninstalled traps 1534 | -10/Mines | Met a Derelict who couldn't figure out how to use a Trap Extractor 1629 | -10/Mines | Discovered new exit (range 4) 1653 | -10/Mines | Entered Materials 1653 | -9/Materials | Evolved 2 slots: Propulsion x1, Utility x1 2027 | -9/Materials | Discovered new exit (range 14) 2315 | -9/Materials | Discovered new exit (range 4) 2657 | -9/Materials | Build established: Scientist-Mutant 2819 | -9/Materials | Identified exit to Mines 2948 | -9/Materials | Entered Mines 2949 | -9/Mines | Assembled infested the area 2976 | -9/Mines | Discovered new exit (range 6) 2982 | -9/Mines | Entered Materials 2982 | -8/Materials | Evolved 2 slots: Utility x1, Weapon x1 3205 | -8/Materials | Lost 3 parts (1p2u) 3378 | -8/Materials | Identified exit to Garrison 3580 | -8/Materials | Entered Garrison 4080 | -8/Garrison | Triggered checkpoint 4112 | -8/Garrison | Garrison Relay disabled 4280 | -8/Garrison | Triggered checkpoint 4292 | -8/Garrison | Triggered checkpoint 4294 | -8/Garrison | Triggered checkpoint 4462 | -8/Garrison | Garrison Relay disabled 4514 | -8/Garrison | Triggered checkpoint 4607 | -8/Garrison | Discovered new exit (range 3) 4832 | -8/Garrison | Build established: Commander-Mutant 4869 | -8/Garrison | Phase Generator disabled 4920 | -8/Garrison | Triggered checkpoint 4981 | -8/Garrison | Garrison Relay disabled 5027 | -8/Garrison | Discovered new exit (range 7) 5175 | -8/Garrison | Build established: Tank 5178 | -8/Garrison | Triggered checkpoint 5241 | -8/Garrison | Installed Relay Interface Framework 5312 | -8/Garrison | Triggered checkpoint 5402 | -8/Garrison | Garrison Relay disabled 5433 | -8/Garrison | Garrison Relay disabled 5534 | -8/Garrison | Garrison Relay disabled 5594 | -8/Garrison | Discovered new exit (range 8) 5683 | -8/Garrison | Entered Materials 6386 | -8/Materials | Build established: Gunner 6883 | -8/Materials | First assault squad dispatched 6975 | -8/Materials | Lost 3 parts (2n1w) 7279 | -8/Materials | Build established: Scavenger-Gunner 7336 | -8/Materials | Identified exit to Factory 7435 | -8/Materials | Entered Factory 7435 | -7/Factory | Evolved 2 slots: Propulsion x2 7447 | -7/Factory | Lost 4 parts (1p1u2w) 7548 | -7/Factory | Identified exit to Garrison 7893 | -7/Factory | Entered Garrison 8077 | -7/Garrison | Triggered checkpoint 8123 | -7/Garrison | Triggered checkpoint 8225 | -7/Garrison | Lost 6 allies 8588 | -7/Garrison | Triggered checkpoint 8588 | -7/Garrison | Triggered checkpoint 8860 | -7/Garrison | Expanded RIF knowledge: Command Fork 8868 | -7/Garrison | Discovered new exit (range 12) 8917 | -7/Garrison | Triggered checkpoint 8993 | -7/Garrison | Garrison Relay disabled 8996 | -7/Garrison | Triggered checkpoint 9191 | -7/Garrison | Identified exit to Factory 9255 | -7/Garrison | Triggered checkpoint 9290 | -7/Garrison | Garrison Relay disabled 9399 | -7/Garrison | Triggered checkpoint 9457 | -7/Garrison | Lost 10 parts (1p5n1u3w) 9587 | -7/Garrison | Build established: Bothacker-Mutant 10076 | -7/Garrison | Discovered exit to Factory (range 14) 10298 | -7/Garrison | Rescued a captive Derelict 10299 | -7/Garrison | Rescued a captive Derelict 10310 | -7/Garrison | Core integrity fell below 50% 10424 | -7/Garrison | Phase Generator disabled 10678 | -7/Garrison | Entered Factory 10678 | -7/Factory | Accompanied by 4 allies 10715 | -7/Factory | Discovered new exit (range 16) 10789 | -7/Factory | Build established: Bothacker-Tank 11284 | -7/Factory | Lost 3 allies 11401 | -7/Factory | Core integrity fell below 20% 11412 | -7/Factory | Destroyed by G-50 Soldier with Heavy Laser Last Messages --------------- 11401_ M-28 Smith fits Backup Propulsion III on G-50 Soldier. 11402_ M-28 Smith repairs L-41 Fighter. 11402_ K-01 Serf collects debris. 11402_ Myomer Leg severed. 11402_ R-06 Scavenger collects Imp. Recalibrator. 11404_ K-01 Serf collects debris. 11404_ Dropped Huge Storage Unit. 11404_ R-06 Scavenger collects Relay Coupler [Sentry]. 11404_ Dropped Adv. Cooling System. 11405_ G-50 Soldier reactivates. 11405_ K-01 Serf collects debris. 11405_ R-06 Scavenger collects Relay Coupler [Sentry]. 11406_ M-28 Smith repairs G-50 Soldier. 11406_ Dropped Flak Gun+. 11407_ R-06 Scavenger destroyed. 11407_ K-01 Serf collects debris. 11408_ M-28 Smith repairs G-50 Soldier Adv. Heat Sink. 11408_ K-01 Serf collects debris. 11409_ R-06 Scavenger collects Relay Coupler [Sentry]. 11411_ K-01 Serf collects debris. Map ----- +----------------------------------------------------+ | ??????# #????????????????????????????????? | | ??????# """ """ ########??????? ?????????????? | | ??????# """ """ # ?????## ?????????????? | | ??????# """ """ # ?????+ ############## | | ??????# # ""?????# # ! # | | ??????# ! # """"???? # # | | ??????# ]# ] """""???# # # | | ###########+##### """""???# # # | | ## ????# # """" """" # | | ## """"???## # """" """" + | | ## """"???+^ + """" """" # | | ## """"????# # """" """" # | | ## """""" ## # """" """" + | | ########## ## ## # """" """" # | | #??????# ###+############ # """" """" + | | " #??????# [!!=!][g %+ %% # | | " #??????# !=[=!!/ ############## | | " #??????# !]!!g!* #????????????? | | #??????# k][%=m % #????????????? | | #??????# ll!u= % #????????????? | | #??????#########/##### % ####+#########??????? | | #???????# # r# #?? | | ###???????# # # * !#?? | | ??????????# ! # # """ """ #?? | | ??????????# # # """ "" " " #?? | | ??????????# # @ # """ %" ??????? | | ??????????# """ """ # # ???????? | | ??????????# """ """ # # ! ?????? | | ??????????# """ """ # ##########/#####????? | | ??????????# "" "" # ???????? ????????? | | ??????????# "" "" # ???????? ???????? | | ??????????# ? #t """ """???????? ???????? | | ??????????# ? ???# """u""" ???????????????? | | ??????????###########??# """ """ ??????????????? | | ???????????????????????# k ????????????????? | | ???????????????????????# "???""?????????????????? | | ???????????????????????# "??????????????????????? | | ???????????????????????/u ???????????????????????? | | ???????????????????????# ???????????????????????? | | ???????????????????????? ???????????????????????? | | ???????????????????????? ???????????????????????? | | ?????????????????????????????????????????????????? | | ?????????????????????????????????????????????????? | | ?????????????????????????????????????????????????? | | ?????????????????????????????????????????????????? | | ?????????????????????????????????????????????????? | | ?????????????????????????????????????????????????? | | ?????????????????????????????????????????????????? | | ?????????????????????????????????????????????????? | | ?????????????????????????????????????????????????? | +----------------------------------------------------+ Best States ------------- Heat Dissipation 79 Energy Generation 21 Energy Capacity 310 Matter Stores 300 Matter Capacity 300 Sight Range 16 Terrain Scan Range 16 Terrain Scan Density 10 Armor Coverage 600 Resistance: KI 20 Resistance: EM 15 Phase Shifting 10 Evasion (%) 55 Targeting Accuracy 8 Recoil Reduction 4 Relay Coupler Types 1 Relay Coupler Value 24 Authchip Count 4 Item Schematics ----------------- None Robot Schematics ------------------ None Fabricated ------------ Nothing Repaired ---------- Nothing Studied --------- Com. Wheel | -9/Materials | Hacked Imp. Light Cannon | -9/Materials | Hacked Lgt. Assault Rifle | -9/Materials | Hacked Arm. Wheel | -9/Materials | Hacked Adv. Treads | -7/Factory | Hacked Hvy. Assault Rifle | -7/Factory | Hacked Hvy. Assault Cannon | -7/Factory | Hacked Flak Gun | -7/Factory | Hacked Alien Tech Used ----------------- None Achievements -------------- Myspace You Will Be Upgraded Challenges ------------ None Game ------ Seed SchematicAuthchipStrikerail Manual? 0 Play Time 01:18:41 Cumulative 231.6 hours Start 2026.01.17 @ 18:51:34 End 2026.01.17 @ 20:13:30 Sessions 1 Manual Loads 0 Difficulty Rogue Special Mode None Game No. 173 Rogue 47 Adventurer 47 Explorer 79 Win Type - Total 35 Types 25/2/7/1/0/0/0/0/0/0 Lore% 58 Gallery% 70 Achievement% 49 Wizard Run 0 Options --------- Layout 0 ASCII 0 Keyboard 1 Movement Numpad Keybinds 0 Fullscreen 2 Font 18/SmallcapsGlow Map View 76x50 Zoom Use 0% Tactical HUD 1 Map Filters NONE Filters NONE Steam 1 RUN: 0c5f9b2e-aa20-41d2-8d27-b35afc5ebc23